fUSD/lending_fUSD_20250911
["ID","MTS","AMOUNT","RATE_DAILY","PERIOD"]
[384954333,1757633499924,-400.0,0.00028219,7]
[384954334,1757633499937,-400.0,0.00028219,7]
[384954335,1757633499946,-400.0,0.00028219,7]
[384954336,1757633499955,-400.0,0.00028219,7]
[384954337,1757633499964,-1070.24,0.00028219,7]
[384954338,1757633499973,-726.75,0.00028219,7]
[384954339,1757633499982,-400.0,0.00028219,7]
[384954340,1757633499991,-400.0,0.00028219,7]
[384954341,1757633500000,-400.0,0.00028219,7]
[384954342,1757633500009,-400.0,0.00028219,7]
[384954343,1757633500018,-531.0,0.00028219,7]
[384954344,1757633500028,-1051.33,0.00028219,7]
[384954345,1757633500037,-400.0,0.00028219,7]
[384954346,1757633500046,-400.0,0.00028219,7]
[384954347,1757633500056,-400.0,0.00028219,7]
[384954348,1757633500065,-400.0,0.00028219,7]
[384954349,1757633500074,-453.86,0.00028219,7]
[384954350,1757633500084,-568.89,0.00028219,7]
[384954351,1757633500094,-593.01,0.00028219,7]
[384954352,1757633500103,-400.0,0.00028219,7]
[384954353,1757633500114,-429.11,0.00028219,7]
[384954354,1757633500123,-400.0,0.00028219,7]
[384954355,1757633500132,-611.58,0.00028219,7]
[384954356,1757633500142,-400.0,0.00028219,7]
[384954357,1757633500151,-565.02,0.00028219,7]
[384954358,1757633500161,-400.0,0.00028219,7]
[384954359,1757633500170,-400.0,0.00028219,7]
[384954360,1757633500179,-400.0,0.00028219,7]
[384954361,1757633500189,-400.0,0.00028219,7]
[384954362,1757633500199,-303.78005697,0.00028219,7]
[384954363,1757633500208,-400.0,0.00028219,7]
[384954364,1757633500218,-872.03,0.00028219,7]
[384954365,1757633500228,-808.85,0.00028219,7]
[384954366,1757633500237,-434.10060598,0.00028219,7]
[384954367,1757633500246,-656.37,0.00028219,7]
[384954368,1757633500255,-400.0,0.00028219,7]
[384954369,1757633500265,-864.75,0.00028219,7]
[384954370,1757633500274,-400.0,0.00028219,7]
[384954371,1757633500283,-400.0,0.00028219,7]
[384954372,1757633500292,-701.7,0.00028219,7]
[384954373,1757633500302,-400.0,0.00028219,7]
[384954374,1757633500311,-501.39,0.00028219,7]
[384954375,1757633500321,-400.0,0.00028219,7]
[384954376,1757633500330,-477.35987713,0.00028219,7]
[384954377,1757633500339,-400.0,0.00028219,7]
[384954378,1757633500349,-400.0,0.00028219,7]
[384954379,1757633500359,-400.0,0.00028219,7]
[384954380,1757633500370,-960.23,0.00028219,7]
[384954381,1757633500379,-400.0,0.00028219,7]
[384954383,1757633500492,-400.0,0.00028219,7]
[384954384,1757633500502,-437.87,0.00028219,7]
[384954385,1757633500511,-400.0,0.00028219,7]
[384954386,1757633500521,-400.0,0.00028219,7]
[384954387,1757633500531,-400.0,0.00028219,7]
[384954388,1757633500540,-746.08,0.00028219,7]
[384954389,1757633500550,-553.27,0.00028219,7]
[384954390,1757633500560,-481.31,0.00028219,7]
[384954391,1757633500570,-599.2,0.00028219,7]
[384954392,1757633500579,-923.33,0.00028219,7]
[384954393,1757633500589,-379.48698161,0.00028219,7]
[384954394,1757633500599,-400.0,0.00028219,7]
[384954395,1757633500608,-400.0,0.00028219,7]
[384954396,1757633500617,-400.0,0.00028219,7]
[384954397,1757633500626,-654.29,0.00028219,7]
[384954398,1757633500635,-400.0,0.00028219,7]
[384954399,1757633500644,-400.0,0.00028219,7]
[384954400,1757633500654,-400.0,0.00028219,7]
[384954401,1757633500663,-400.0,0.00028219,7]
[384954402,1757633500672,-453.16,0.00028219,7]
[384954403,1757633500682,-400.0,0.00028219,7]
[384954404,1757633500692,-400.0,0.00028219,7]
[384954405,1757633500701,-537.90243035,0.00028219,7]
[384954406,1757633500710,-400.0,0.00028219,7]
[384954407,1757633500720,-400.0,0.00028219,7]
[384954408,1757633500729,-400.0,0.00028219,7]
[384954409,1757633500739,-400.0,0.00028219,7]
[384954410,1757633500749,-400.0,0.00028219,7]
[384954411,1757633500758,-400.0,0.00028219,7]
[384954412,1757633500768,-612.01,0.00028219,7]
[384954413,1757633500777,-400.0,0.00028219,7]
[384954414,1757633500787,-490.48,0.00028219,7]
[384954415,1757633500797,-400.0,0.00028219,7]
[384954416,1757633500806,-785.9,0.00028219,7]
[384954417,1757633500814,-616.16,0.00028219,7]
[384954418,1757633500824,-400.0,0.00028219,7]
[384954419,1757633500833,-416.61923273,0.00028219,7]
[384954420,1757633500843,-440.78,0.00028219,7]
[384954421,1757633500852,-400.0,0.00028219,7]
[384954422,1757633500861,-492.6,0.00028219,7]
[384954423,1757633500870,-400.0,0.00028219,7]
[384954424,1757633500880,-400.0,0.00028219,7]
[384954425,1757633500889,-400.0,0.00028219,7]
[384954426,1757633500898,-775.58,0.00028219,7]
[384954427,1757633500908,-1206.98,0.00028219,7]
[384954428,1757633500918,-439.47,0.00028219,7]
[384954429,1757633500928,-400.0,0.00028219,7]
[384954430,1757633500938,-509.99,0.00028219,7]
[384954431,1757633500947,-256.05599467,0.00028219,7]
[384954432,1757633500956,-963.12,0.00028219,7]
[384954433,1757633500966,-158.57624979,0.00028219,7]
[384954434,1757633500975,-400.0,0.00028219,7]
[384954435,1757633500984,-300.0,0.00028219,7]
[384954436,1757633500993,-638.33,0.00028219,7]
[384954437,1757633501002,-400.0,0.00028219,7]
[384954438,1757633501011,-544.4,0.00028219,7]
[384954439,1757633501020,-541.74,0.00028219,7]
[384954440,1757633501030,-400.0,0.00028219,7]
[384954441,1757633501039,-400.0,0.00028219,7]
[384954442,1757633501048,-400.0,0.00028219,7]
[384954443,1757633501057,-400.0,0.00028219,7]
[384954444,1757633501067,-990.01,0.00028219,7]
[384954445,1757633501075,-400.0,0.00028219,7]
[384954446,1757633501084,-400.0,0.00028219,7]
[384954447,1757633501094,-400.0,0.00028219,7]
[384954448,1757633501103,-400.0,0.00028219,7]
[384954449,1757633501112,-686.43,0.00028219,7]
[384954450,1757633501121,-400.0,0.00028219,7]
[384954451,1757633501130,-400.0,0.00028219,7]
[384954452,1757633501140,-400.0,0.00028219,7]
[384954453,1757633501149,-400.0,0.00028219,7]
[384954454,1757633501158,-400.0,0.00028219,7]
[384954455,1757633501167,-400.0,0.00028219,7]
[384954456,1757633501176,-400.08,0.00028219,7]
[384954457,1757633501185,-400.0,0.00028219,7]
[384954458,1757633501194,-400.0,0.00028219,7]
[384954459,1757633501203,-613.72,0.00028219,7]
[384954460,1757633501212,-400.0,0.00028219,7]
[384954461,1757633501221,-724.69,0.00028219,7]
[384954462,1757633501230,-622.13,0.00028219,7]
[384954463,1757633501239,-400.0,0.00028219,7]
[384954464,1757633501248,-1069.41,0.00028219,7]
[384954465,1757633501257,-1059.75,0.00028219,7]
[384954466,1757633501267,-506.8,0.00028219,7]
[384954467,1757633501278,-237.54,0.00028219,7]
[384954468,1757633501287,-400.0,0.00028219,7]
[384954469,1757633501296,-246.42000599,0.00028219,7]
[384954470,1757633501305,-1004.03,0.00028219,7]
[384954471,1757633501314,-400.0,0.00028219,7]
[384954472,1757633501323,-400.0,0.00028219,7]
[384954473,1757633501332,-753.26,0.00028219,7]
[384954474,1757633501342,-400.0,0.00028219,7]
[384954475,1757633501351,-400.0,0.00028219,7]
[384954476,1757633501362,-400.0,0.00028219,7]
[384954477,1757633501370,-1145.31,0.00028219,7]
[384954478,1757633501379,-1353.57,0.00028219,7]
[384954479,1757633501388,-400.0,0.00028219,7]
[384954480,1757633501397,-411.17,0.00028219,7]
[384954481,1757633501406,-684.82,0.00028219,7]
[384954482,1757633501414,-400.0,0.00028219,7]
[384954483,1757633501423,-488.85,0.00028219,7]
[384954484,1757633501432,-657.64,0.00028219,7]
[384954485,1757633501441,-400.0,0.00028219,7]
[384954486,1757633501450,-400.0,0.00028219,7]
[384954487,1757633501459,-485.19,0.00028219,7]
[384954488,1757633501469,-400.0,0.00028219,7]
[384954489,1757633501478,-400.0,0.00028219,7]
[384954490,1757633501487,-832.53,0.00028219,7]
[384954491,1757633501496,-400.0,0.00028219,7]
[384954492,1757633501505,-400.0,0.00028219,7]
[384954493,1757633501514,-400.0,0.00028219,7]
[384954494,1757633501523,-400.0,0.00028219,7]
[384954495,1757633501532,-806.45,0.00028219,7]
[384954496,1757633501541,-1109.35,0.00028219,7]
[384954497,1757633501550,-400.0,0.00028219,7]
[384954498,1757633501559,-1282.14,0.00028219,7]
[384954499,1757633501569,-400.0,0.00028219,7]
[384954500,1757633501579,-1045.02,0.00028219,7]
[384954501,1757633501587,-1090.41,0.00028219,7]
[384954502,1757633501596,-400.0,0.00028219,7]
[384954503,1757633501607,-1806.64,0.00028219,7]
[384954504,1757633501618,-750.57,0.00028219,7]
[384954505,1757633501628,-1028.56,0.00028219,7]
[384954506,1757633501637,-1128.76,0.00028219,7]
[384954507,1757633501647,-503.43,0.00028219,7]
[384954508,1757633501656,-1374.45,0.00028219,7]
[384954509,1757633501665,-400.0,0.00028219,7]
[384954510,1757633501674,-452.16,0.00028219,7]
[384954511,1757633501683,-400.0,0.00028219,7]
[384954512,1757633501692,-424.11,0.00028219,7]
[384954513,1757633501702,-632.34,0.00028219,7]
[384954514,1757633501711,-400.0,0.00028219,7]
[384954515,1757633501720,-345.2568063,0.00028219,7]
[384954516,1757633501729,-494.59,0.00028219,7]
[384954517,1757633501739,-400.0,0.00028219,7]
[384954518,1757633501748,-400.0,0.00028219,7]
[384954519,1757633501757,-473.98496594,0.00028219,7]
[384954520,1757633501767,-400.0,0.00028219,7]
[384954521,1757633501775,-1437.02,0.00028219,7]
[384954522,1757633501785,-526.21537289,0.00028219,7]
[384954523,1757633501794,-400.0,0.00028219,7]
[384954524,1757633501803,-400.0,0.00028219,7]
[384954525,1757633501812,-400.0,0.00028219,7]
[384954526,1757633501822,-400.0,0.00028219,7]
[384954527,1757633501830,-1198.42,0.00028219,7]
[384954528,1757633501840,-565.03,0.00028219,7]
[384954529,1757633501848,-659.58,0.00028219,7]
[384954530,1757633501858,-1075.82,0.00028219,7]
[384954531,1757633501867,-1181.4,0.00028219,7]
[384954532,1757633501876,-400.0,0.00028219,7]
[384954533,1757633501885,-400.0,0.00028219,7]
[384954534,1757633501894,-1195.49,0.00028219,7]
[384954535,1757633501904,-400.0,0.00028219,7]
[384954536,1757633501913,-400.0,0.00028219,7]
[384954537,1757633501923,-400.0,0.00028219,7]
[384954538,1757633501937,-1024.21,0.00028219,7]
[384954539,1757633501947,-438.81,0.00028219,7]
[384954540,1757633501956,-410.71,0.00028219,7]
[384954541,1757633501965,-1527.6,0.00028219,7]
[384954542,1757633501975,-400.0,0.00028219,7]
[384954543,1757633501984,-400.0,0.00028219,7]
[384954544,1757633501993,-400.0,0.00028219,7]
[384954545,1757633502002,-485.99,0.00028219,7]
[384954546,1757633502011,-1028.89,0.00028219,7]
[384954547,1757633502021,-1724.24,0.00028219,7]
[384954548,1757633502030,-432.8,0.00028219,7]
[384954549,1757633502039,-1062.78,0.00028219,7]
[384954550,1757633502049,-400.0,0.00028219,7]
[384954551,1757633502058,-400.0,0.00028219,7]
[384954552,1757633502067,-400.0,0.00028219,7]
[384954553,1757633502076,-400.0,0.00028219,7]
[384954554,1757633502086,-619.4,0.00028219,7]
[384954555,1757633502095,-1272.98,0.00028219,7]
[384954556,1757633502104,-773.47,0.00028219,7]
[384954557,1757633502114,-929.55,0.00028219,7]
[384954558,1757633502123,-779.09,0.00028219,7]
[384954559,1757633502133,-400.0,0.00028219,7]
[384954560,1757633502142,-424.15,0.00028219,7]
[384954561,1757633502151,-1542.93,0.00028219,7]
[384954562,1757633502161,-2796.58,0.00028219,7]
[384954563,1757633502171,-1477.0,0.00028219,7]
[384954564,1757633502180,-400.0,0.00028219,7]
[384954565,1757633502190,-1213.31,0.00028219,7]
[384954566,1757633502199,-1699.32,0.00028219,7]
[384954567,1757633502209,-400.0,0.00028219,7]
[384954568,1757633502219,-400.0,0.00028219,7]
[384954569,1757633502228,-678.5,0.00028219,7]
[384954570,1757633502238,-1111.24,0.00028219,7]
[384954571,1757633502247,-1277.28,0.00028219,7]
[384954572,1757633502257,-523.02,0.00028219,7]
[384954573,1757633502266,-400.0,0.00028219,7]
[384954574,1757633502275,-1035.53,0.00028219,7]
[384954575,1757633502285,-1081.61,0.00028219,7]
[384954576,1757633502294,-575.06,0.00028219,7]
[384954577,1757633502303,-1453.23,0.00028219,7]
[384954578,1757633502313,-400.0,0.00028219,7]
[384954579,1757633502322,-543.93,0.00028219,7]
[384954580,1757633502331,-400.0,0.00028219,7]
[384954581,1757633502342,-400.0,0.00028219,7]
[384954582,1757633502351,-945.63,0.00028219,7]
[384954583,1757633502361,-1445.03,0.00028219,7]
[384954584,1757633502370,-4294.71,0.00028219,5]
[384954585,1757633502379,-752.34,0.00028219,7]
[384954586,1757633502389,-467.41,0.00028219,7]
[384954587,1757633502399,-400.0,0.00028219,7]
[384954588,1757633502408,-984.14,0.00028219,7]
[384954589,1757633502417,-400.0,0.00028219,7]
[384954590,1757633502427,-400.0,0.00028219,7]
[384954591,1757633502436,-1118.93,0.00028219,7]
[384954592,1757633502446,-400.0,0.00028219,7]
[384954593,1757633502455,-400.0,0.00028219,7]
[384954594,1757633502464,-467.27,0.00028219,7]
[384954595,1757633502474,-400.0,0.00028219,7]
[384954596,1757633502483,-411.37,0.00028219,7]
[384954597,1757633502493,-779.96,0.00028219,7]
[384954598,1757633502502,-1272.31,0.00028219,7]
[384954599,1757633502511,-400.0,0.00028219,7]
[384954600,1757633502521,-1074.79,0.00028219,7]
[384954601,1757633502530,-400.0,0.00028219,7]
[384954602,1757633502540,-200.0,0.00028219,7]
[384954603,1757633502549,-647.42,0.00028219,7]
[384954604,1757633502559,-698.12,0.00028219,7]
[384954605,1757633502568,-1259.47,0.00028219,7]
[384954606,1757633502577,-1361.45,0.00028219,7]
[384954607,1757633502587,-400.0,0.00028219,7]
[384954608,1757633502597,-978.1,0.00028219,7]
[384954609,1757633502607,-1108.2,0.00028219,7]
[384954610,1757633502619,-400.0,0.00028219,7]
[384954611,1757633502628,-968.72,0.00028219,7]
[384954612,1757633502638,-568.98,0.00028219,7]
[384954613,1757633502648,-400.0,0.00028219,7]
[384954614,1757633502657,-400.0,0.00028219,7]
[384954615,1757633502667,-400.0,0.00028219,7]
[384954616,1757633502676,-455.43,0.00028219,7]
[384954617,1757633502685,-400.0,0.00028219,7]
[384954618,1757633502695,-1514.27,0.00028219,7]
[384954619,1757633502704,-593.91,0.00028219,7]
[384954620,1757633502714,-400.0,0.00028219,7]
[384954621,1757633502724,-1165.07,0.00028219,7]
[384954622,1757633502736,-400.0,0.00028219,7]
[384954623,1757633502746,-400.0,0.00028219,7]
[384954624,1757633502755,-1245.93,0.00028219,7]
[384954625,1757633502765,-400.0,0.00028219,7]
[384954626,1757633502775,-400.0,0.00028219,7]
[384954627,1757633502783,-1080.41,0.00028219,7]
[384954628,1757633502793,-1199.29,0.00028219,7]
[384954629,1757633502802,-443.85,0.00028219,7]
[384954630,1757633502812,-1223.15,0.00028219,7]
[384954631,1757633502821,-1507.47,0.00028219,7]
[384954632,1757633502831,-1390.09,0.00028219,7]
[384954633,1757633502840,-1314.63,0.00028219,7]
[384954634,1757633502850,-400.0,0.00028219,7]
[384954635,1757633502860,-429.56,0.00028219,7]
[384954636,1757633502869,-676.11,0.00028219,7]
[384954637,1757633502879,-400.0,0.00028219,7]
[384954638,1757633502889,-933.51,0.00028219,7]
[384954639,1757633502898,-403.06,0.00028219,7]
[384954640,1757633502908,-1035.3,0.00028219,7]
[384954641,1757633502918,-1055.14,0.00028219,7]
[384954642,1757633502928,-370.30142224,0.00028219,7]
[384954643,1757633502938,-400.0,0.00028219,7]
[384954644,1757633502948,-1072.69,0.00028219,7]
[384954645,1757633502959,-400.0,0.00028219,7]
[384954646,1757633502969,-400.0,0.00028219,7]
[384954647,1757633502978,-400.0,0.00028219,7]
[384954648,1757633502987,-400.0,0.00028219,7]
[384954649,1757633502997,-400.0,0.00028219,7]
[384954650,1757633503006,-400.0,0.00028219,7]
[384954651,1757633503016,-400.0,0.00028219,7]
[384954652,1757633503025,-1354.49,0.00028219,7]
[384954653,1757633503035,-400.0,0.00028219,7]
[384954654,1757633503044,-400.0,0.00028219,7]
[384954655,1757633503054,-400.0,0.00028219,7]
[384954656,1757633503063,-836.58,0.00028219,7]
[384954657,1757633503073,-1103.91,0.00028219,7]
[384954658,1757633503082,-1130.25,0.00028219,7]
[384954659,1757633503093,-400.0,0.00028219,7]
[384954660,1757633503102,-400.0,0.00028219,7]
[384954661,1757633503112,-1663.99,0.00028219,7]
[384954662,1757633503122,-177.1476712,0.00028219,7]
[384954663,1757633503131,-400.0,0.00028219,7]
[384954664,1757633503141,-400.0,0.00028219,7]
[384954665,1757633503151,-442.46502268,0.00028219,7]
[384954666,1757633503160,-540.94,0.00028219,7]
[384954667,1757633503169,-400.0,0.00028219,7]
[384954668,1757633503179,-400.0,0.00028219,7]
[384954669,1757633503188,-569.94,0.00028219,7]
[384954670,1757633503198,-1453.75,0.00028219,7]
[384954671,1757633503208,-1044.97,0.00028219,7]
[384954672,1757633503217,-400.0,0.00028219,7]
[384954673,1757633503227,-400.0,0.00028219,7]
[384954674,1757633503237,-400.0,0.00028219,7]
[384954675,1757633503247,-861.3,0.00028219,7]
[384954676,1757633503256,-400.0,0.00028219,7]
[384954677,1757633503265,-506.39,0.00028219,7]
[384954678,1757633503275,-1016.72,0.00028219,7]
[384954679,1757633503284,-673.34,0.00028219,7]
[384954680,1757633503294,-722.58,0.00028219,7]
[384954681,1757633503304,-400.0,0.00028219,7]
[384954682,1757633503313,-400.0,0.00028219,7]
[384954683,1757633503323,-400.0,0.00028219,7]
[384954684,1757633503332,-755.45,0.00028219,7]
[384954685,1757633503343,-1392.38,0.00028219,7]
[384954686,1757633503352,-400.0,0.00028219,7]
[384954687,1757633503361,-688.74,0.00028219,7]
[384954688,1757633503371,-835.25,0.00028219,7]
[384954689,1757633503380,-1071.53,0.00028219,7]
[384954690,1757633503390,-514.55,0.00028219,7]
[384954691,1757633503399,-816.22,0.00028219,7]
[384954692,1757633503410,-523.2197397,0.00028219,7]
[384954693,1757633503419,-932.79,0.00028219,7]
[384954694,1757633503428,-1697.84,0.00028219,7]
[384954695,1757633503437,-1128.02,0.00028219,7]
[384954696,1757633503446,-1395.9,0.00028219,7]
[384954697,1757633503456,-400.0,0.00028219,7]
[384954698,1757633503466,-1126.95,0.00028219,7]
[384954699,1757633503476,-400.0,0.00028219,7]
[384954700,1757633503485,-400.0,0.00028219,7]
[384954701,1757633503495,-425.91,0.00028219,7]
[384954702,1757633503504,-400.0,0.00028219,7]
[384954703,1757633503514,-962.07,0.00028219,7]
[384954704,1757633503523,-400.0,0.00028219,7]
[384954705,1757633503533,-428.25,0.00028219,7]
[384954706,1757633503542,-400.0,0.00028219,7]
[384954707,1757633503552,-1242.86,0.00028219,7]
[384954708,1757633503562,-1114.81,0.00028219,7]
[384954709,1757633503572,-400.0,0.00028219,7]
[384954710,1757633503581,-1120.66,0.00028219,7]
[384954711,1757633503591,-400.0,0.00028219,7]
[384954712,1757633503601,-475.94,0.00028219,7]
[384954713,1757633503611,-566.16,0.00028219,7]
[384954714,1757633503620,-669.71,0.00028219,7]
[384954715,1757633503630,-400.0,0.00028219,7]
[384954716,1757633503640,-400.0,0.00028219,7]
[384954717,1757633503649,-400.0,0.00028219,7]
[384954718,1757633503659,-687.42,0.00028219,7]
[384954719,1757633503669,-1168.38,0.00028219,7]
[384954720,1757633503678,-400.0,0.00028219,7]
[384954721,1757633503688,-783.77,0.00028219,7]
[384954722,1757633503698,-1220.98,0.00028219,7]
[384954723,1757633503708,-706.87,0.00028219,7]
[384954724,1757633503718,-1304.66,0.00028219,7]
[384954725,1757633503728,-543.67,0.00028219,7]
[384954726,1757633503738,-400.0,0.00028219,7]
[384954727,1757633503749,-400.0,0.00028219,7]
[384954728,1757633503759,-400.0,0.00028219,7]
[384954729,1757633503769,-400.0,0.00028219,7]
[384954730,1757633503779,-1017.54,0.00028219,7]
[384954731,1757633503789,-400.0,0.00028219,7]
[384954732,1757633503799,-456.86758352,0.00028219,7]
[384954733,1757633503809,-400.0,0.00028219,7]
[384954734,1757633503819,-1010.45,0.00028219,7]
[384954735,1757633503828,-400.0,0.00028219,7]
[384954736,1757633503838,-411.58,0.00028219,7]
[384954737,1757633503848,-400.0,0.00028219,7]
[384954738,1757633503858,-436.9,0.00028219,7]
[384954739,1757633503868,-400.0,0.00028219,7]
[384954740,1757633503878,-400.0,0.00028219,7]
[384954741,1757633503888,-1182.03,0.00028219,7]
[384954742,1757633503898,-1203.98,0.00028219,7]
[384954743,1757633503908,-400.0,0.00028219,7]
[384954744,1757633503919,-1451.67,0.00028219,7]
[384954745,1757633503931,-978.41,0.00028219,7]
[384954746,1757633503949,-1642.45,0.00028219,7]
[384954747,1757633503960,-400.0,0.00028219,7]
[384954748,1757633503970,-400.0,0.00028219,7]
[384954749,1757633503980,-1921.44,0.00028219,7]
[384954750,1757633503990,-400.0,0.00028219,7]
[384954751,1757633504000,-400.0,0.00028219,7]
[384954752,1757633504009,-1357.4,0.00028219,7]
[384954753,1757633504020,-1129.64,0.00028219,7]
[384954754,1757633504031,-1403.43,0.00028219,7]
[384954755,1757633504041,-415.39,0.00028219,7]
[384954756,1757633504051,-400.0,0.00028219,7]
[384954757,1757633504061,-400.0,0.00028219,7]
[384954758,1757633504071,-1127.73,0.00028219,7]
[384954759,1757633504081,-400.0,0.00028219,7]
[384954760,1757633504091,-863.75,0.00028219,7]
[384954761,1757633504101,-801.85,0.00028219,7]
[384954762,1757633504111,-400.0,0.00028219,7]
[384954763,1757633504121,-515.73,0.00028219,7]
[384954764,1757633504131,-579.29,0.00028219,7]
[384954765,1757633504141,-951.97,0.00028219,7]
[384954766,1757633504151,-1347.07,0.00028219,7]
[384954767,1757633504389,-1027.64,0.00028219,7]
[384954768,1757633504399,-675.51,0.00028219,7]
[384954769,1757633504409,-475.39,0.00028219,7]
[384954770,1757633504418,-400.0,0.00028219,7]
[384954771,1757633504428,-751.78,0.00028219,7]
[384954772,1757633504437,-400.0,0.00028219,7]
[384954773,1757633504447,-400.0,0.00028219,7]
[384954774,1757633504456,-610.88,0.00028219,7]
[384954775,1757633504465,-1829.98,0.00028219,7]
[384954776,1757633504474,-1338.64,0.00028219,7]
[384954777,1757633504483,-400.0,0.00028219,7]
[384954778,1757633504493,-1162.24,0.00028219,7]
[384954779,1757633504502,-532.1,0.00028219,7]
[384954780,1757633504512,-400.0,0.00028219,7]
[384954781,1757633504521,-1207.66,0.00028219,7]
[384954782,1757633504531,-400.0,0.00028219,7]
[384954783,1757633504541,-400.0,0.00028219,7]
[384954784,1757633504551,-1509.88,0.00028219,7]
[384954785,1757633504561,-1345.49,0.00028219,7]
[384954786,1757633504570,-400.0,0.00028219,7]
[384954787,1757633504580,-721.91,0.00028219,7]
[384954788,1757633504590,-1071.35,0.00028219,7]
[384954789,1757633504599,-952.16,0.00028219,7]
[384954790,1757633504609,-400.0,0.00028219,7]
[384954791,1757633504619,-795.13,0.00028219,7]
[384954792,1757633504628,-914.46,0.00028219,7]
[384954793,1757633504639,-1471.32,0.00028219,7]
[384954794,1757633504648,-752.2,0.00028219,7]
[384954795,1757633504658,-401.61,0.00028219,7]
[384954796,1757633504667,-896.88,0.00028219,7]
[384954797,1757633504677,-400.0,0.00028219,7]
[384954798,1757633504686,-400.0,0.00028219,7]
[384954799,1757633504696,-400.0,0.00028219,7]
[384954800,1757633504706,-400.0,0.00028219,7]
[384954801,1757633504716,-470.55,0.00028219,7]
[384954802,1757633504726,-1192.17,0.00028219,7]
[384954803,1757633504735,-385.42673413,0.00028219,7]
[384954804,1757633504745,-400.0,0.00028219,7]
[384954805,1757633504755,-1028.3,0.00028219,7]
[384954806,1757633504765,-924.78,0.00028219,7]
[384954807,1757633504775,-400.0,0.00028219,7]
[384954808,1757633504785,-1333.95,0.00028219,7]
[384954809,1757633504795,-1316.83,0.00028219,7]
[384954810,1757633504805,-1022.6,0.00028219,7]
[384954811,1757633504815,-235.15063268,0.00028219,7]
[384954812,1757633504824,-867.09,0.00028219,7]
[384954813,1757633504833,-717.0,0.00028219,7]
[384954814,1757633504844,-1990.33,0.00028219,7]
[384954815,1757633504854,-400.0,0.00028219,7]
[384954816,1757633504864,-400.0,0.00028219,7]
[384954817,1757633504874,-733.5,0.00028219,7]
[384954818,1757633504884,-757.99,0.00028219,7]
[384954819,1757633504894,-2138.73,0.00028219,7]
[384954820,1757633504904,-400.0,0.00028219,7]
[384954821,1757633504914,-786.95,0.00028219,7]
[384954822,1757633504924,-1080.19,0.00028219,7]
[384954823,1757633504934,-436.27,0.00028219,7]
[384954824,1757633504943,-400.0,0.00028219,7]
[384954825,1757633504954,-1408.38,0.00028219,7]
[384954826,1757633504965,-1679.93,0.00028219,7]
[384954827,1757633504975,-891.25,0.00028219,7]
[384954828,1757633504985,-400.0,0.00028219,7]
[384954829,1757633504995,-1455.65,0.00028219,7]
[384954830,1757633505005,-1001.93,0.00028219,7]
[384954831,1757633505015,-911.04,0.00028219,7]
[384954832,1757633505025,-400.0,0.00028219,7]
[384954833,1757633505035,-2319.37,0.00028219,7]